bitfinex/quotes_ETHUSD_20250804
["timestamp","ask_amount","ask_price","bid_price","bid_amount"]
[1754342153365,4.142,3714.3,3714.0,2.69250321]
[1754342153703,4.142,3714.3,3714.2,2.69236982]
[1754342153997,4.142,3714.3,3713.9,2.6925355]
[1754342154196,4.596,3714.3,3713.9,2.6925355]
[1754342154403,4.142,3714.3,3714.0,2.69250098]
[1754342156004,4.596,3714.3,3714.0,2.69250098]
[1754342157992,4.142,3714.3,3713.7,0.1344]
[1754342158225,0.454,3714.2,3713.8,2.69259574]
[1754342158423,0.454,3714.2,3713.9,2.69258367]
[1754342159123,3.63825164,3714.1,3713.5,2.69283189]
[1754342159290,3.63825164,3714.1,3713.7,2.69273229]
[1754342159291,4.141,3714.0,3713.7,2.69273229]
[1754342159626,4.595,3714.0,3713.7,2.69273229]
[1754342160012,4.141,3714.0,3713.5,2.69285892]
[1754342160192,0.454,3713.9,3713.6,2.69273273]
[1754342160516,0.454,3713.8,3713.4,2.82732707]
[1754342160681,6.83351805,3714.0,3713.2,0.001]
[1754342160682,13.67030846,3713.6,3713.2,0.001]
[1754342160885,5.82739984,3713.4,3713.2,0.001]
[1754342161127,5.69299984,3713.4,3713.2,0.001]
[1754342161432,0.454,3713.3,3713.2,0.001]
[1754342161589,1.80047852,3713.3,3713.2,0.001]
[1754342161788,4.98530089,3713.3,3713.2,0.001]
[1754342162534,7.98530089,3713.3,3713.2,0.001]
[1754342162893,7.03950089,3713.3,3713.2,0.001]
[1754342163094,51.95343683,3713.3,3713.2,0.001]
[1754342163291,56.09443683,3713.3,3713.2,0.001]
[1754342164106,56.23149636,3713.3,3713.2,0.001]
[1754342165509,37.63056042,3713.3,3713.2,0.001]
[1754342165723,37.141,3713.3,3713.2,0.001]
[1754342165938,39.83402237,3713.3,3713.2,0.001]
[1754342166101,40.28802237,3713.3,3713.2,0.001]
[1754342166515,0.454,3713.7,3713.2,0.001]
[1754342166699,0.1344,3713.3,3713.2,0.9451]
[1754342166897,4.2764,3713.3,3713.2,0.4798]
[1754342167303,7.2764,3713.3,3713.2,0.4798]
[1754342168020,7.2764,3713.3,3713.2,0.9451]
[1754342168429,7.2764,3713.3,3713.2,3.6381949]
[1754342169025,7.2764,3713.3,3713.2,0.9451]
[1754342169207,7.2764,3713.3,3713.2,3.6381949]
[1754342169886,0.1344,3713.7,3713.2,0.9451]
[1754342170090,3.0,3713.5,3713.3,0.4788]
[1754342170301,4.142,3713.4,3713.3,2.69302237]
[1754342170502,0.1344,3713.7,3713.4,2.69287787]
[1754342170740,3.0,3713.5,3713.4,2.69287787]
[1754342170943,3.0,3713.5,3713.4,3.17167787]
[1754342171634,0.1344,3713.7,3713.6,2.69280482]
[1754342171835,0.1344,3713.9,3713.8,2.6926598]
[1754342172041,0.1344,3714.3,3713.6,0.1344]
[1754342172201,0.1344,3714.3,3714.2,2.69236982]
[1754342172405,0.002,3714.8,3714.2,0.9441]
[1754342172640,4.142,3714.5,3714.2,2.69234179]
[1754342172805,7.142,3714.5,3714.4,2.69222485]
[1754342173237,7.142,3714.5,3714.4,3.17102485]
[1754342173439,4.142,3714.5,3714.4,3.17102485]
[1754342173609,0.1364,3714.6,3714.4,3.17102485]
[1754342173610,4.144,3714.6,3714.5,2.69215237]
[1754342173811,4.144,3714.6,3714.5,3.63625237]
[1754342176640,1e-08,3714.6,3714.5,3.77065237]
[1754342176843,1e-08,3714.6,3714.5,3.79089516]
[1754342179450,1e-08,3714.6,3714.5,3.77065237]
[1754342179612,1e-08,3714.6,3714.5,4.88967398]
[1754342180632,1e-08,3714.6,3714.5,5.45991677]
[1754342180834,1e-08,3714.6,3714.5,4.88967398]
[1754342181019,1e-08,3714.6,3714.5,9.02967398]
[1754342181628,1e-08,3714.6,3714.5,4.88967398]
[1754342182340,1e-08,3714.6,3714.5,4.42437398]
[1754342184857,1e-08,3714.6,3714.5,4.87951677]
[1754342185157,1e-08,3714.6,3714.5,5.42951677]
[1754342185446,1e-08,3714.6,3714.5,9.54927398]
[1754342185661,0.002,3714.9,3714.5,9.54927398]
[1754342185662,1e-08,3714.9,3714.8,2.69193496]
[1754342185961,1e-08,3715.2,3715.1,3.24171758]
[1754342186462,1e-08,3715.2,3715.1,8.40321758]
[1754342186754,1e-08,3715.6,3715.5,2.6914278]
[1754342186920,1e-08,3715.6,3715.5,3.22972175]
[1754342187268,1e-08,3715.6,3715.5,4.66682175]
[1754342187824,1e-08,3716.0,3715.9,2.69113808]
[1754342188255,1e-08,3716.0,3715.9,6.73285615]
[1754342188463,1e-08,3716.0,3715.9,6.71263808]
[1754342188668,1e-08,3716.0,3715.9,8.58871715]
[1754342189128,1e-08,3716.0,3715.9,8.79239955]
[1754342190870,1e-08,3716.0,3715.9,5.79239955]
[1754342194444,0.002,3716.2,3715.9,5.79239955]
[1754342194445,1e-08,3716.2,3716.1,3.24099324]
[1754342194649,1e-08,3716.2,3716.1,8.63241485]
[1754342195054,1e-08,3716.2,3716.1,9.51951485]
[1754342196458,1e-08,3716.2,3716.1,9.62725285]
[1754342197825,0.45540001,3716.2,3716.1,3.94441485]
[1754342198135,0.45540001,3716.2,3716.1,2.82539324]
[1754342198347,1e-08,3716.2,3716.1,2.82539324]
[1754342198843,1e-08,3716.2,3716.1,8.42070704]
[1754342199025,1e-08,3716.2,3716.1,8.40049324]
[1754342199522,0.002,3716.8,3716.7,2.69055882]
[1754342199742,0.002,3716.8,3716.7,3.24888186]
[1754342200056,4.87511296,3718.5,3717.8,2.68976276]
[1754342200057,0.1344,3717.9,3717.8,2.68976276]
[1754342200267,0.5898,3717.9,3717.8,2.68976276]
[1754342200463,0.5898,3717.9,3717.8,2.89352485]
[1754342200629,1.073,3717.9,3717.8,2.89352485]
[1754342200975,0.9386,3717.9,3717.8,2.89352485]
[1754342201123,0.1344,3718.2,3717.8,0.20376209]
[1754342201328,2.05229769,3718.5,3718.1,2.68950718]
[1754342201537,1.073,3718.4,3718.1,2.68952177]
[1754342201929,1.073,3718.4,3717.9,2.68968059]
[1754342201930,0.9386,3718.3,3717.9,2.68968059]
[1754342202259,0.9386,3718.2,3718.0,2.68959255]
[1754342202571,0.9386,3718.1,3718.0,2.68959255]
[1754342202940,0.4554,3718.1,3718.0,2.68959255]
[1754342203352,0.9386,3718.1,3718.0,2.68959255]
[1754342203550,0.4554,3718.1,3718.0,2.68959255]
[1754342203930,1.073,3718.4,3718.3,2.68940107]
[1754342204239,1.073,3718.4,3717.8,0.1344]
[1754342204240,0.9386,3718.4,3718.2,2.68945885]
[1754342204547,0.4554,3718.3,3718.2,2.68945885]
[1754342205247,0.9386,3718.3,3717.9,2.68969041]
[1754342205431,0.4554,3718.2,3717.9,2.68969041]
[1754342205828,0.1344,3718.6,3718.2,2.6894664]
[1754342206067,0.5898,3718.6,3718.5,2.68925642]
[1754342206274,0.1344,3718.6,3718.5,2.68925642]
[1754342206651,0.008,3719.0,3718.5,2.68925642]
[1754342206946,0.0064,3719.0,3718.9,2.68896716]
[1754342207146,0.0064,3719.0,3718.9,7.87206505]
[1754342207348,0.0064,3719.0,3718.9,8.35156505]
[1754342207742,0.0064,3719.0,3718.9,8.80696505]
[1754342208275,1e-08,3719.1,3719.0,5.68889486]
[1754342208479,0.1405261,3720.5,3720.4,2.68788302]
[1754342208640,0.004,3720.8,3720.7,2.68766629]
[1754342209158,0.02,3721.9,3721.0,2.68744961]
[1754342209339,0.02,3721.9,3721.0,6.85244961]
[1754342209546,0.02,3721.9,3721.0,8.35334961]
[1754342210247,0.02,3721.9,3721.0,12.65634961]
[1754342210471,0.02,3721.9,3721.0,10.2957965]
[1754342210652,0.02,3721.9,3721.0,14.4937965]
[1754342210853,0.02,3721.9,3721.0,27.91193244]
[1754342211050,0.02,3721.9,3721.0,23.71393244]
[1754342211236,0.02,3721.9,3721.0,27.91093244]
[1754342211441,1e-08,3721.9,3721.8,3.23687194]
[1754342211670,1e-08,3721.9,3721.8,7.86055913]
[1754342211874,0.107557,3726.0,3723.6,3.55]
[1754342212073,4.82702602,3726.9,3723.7,0.02007019]
[1754342212074,2.68421561,3725.5,3723.7,0.02007019]
[1754342212272,0.14030628,3724.6,3722.2,0.02007019]
[1754342212474,2.68508019,3724.3,3723.3,2.68575909]
[1754342212657,0.77494802,3724.2,3722.2,4.303]
[1754342212859,0.05355794,3724.9,3723.4,3.0]
[1754342212860,0.02,3724.9,3723.4,3.0]
[1754342213146,0.02,3724.9,3724.8,2.6847079]
[1754342213352,0.02,3724.9,3723.5,1.7554]
[1754342213675,0.02,3724.9,3723.6,0.55]
[1754342213865,0.02,3724.9,3723.7,4.37]
[1754342214185,0.02,3724.9,3724.0,2.68528464]
[1754342214353,0.4604,3724.8,3723.4,0.20376982]
[1754342214673,0.4604,3724.8,3722.7,13.41813594]
[1754342214674,2.68515187,3724.2,3723.1,2.6859109]
[1754342214875,2.68515187,3724.2,3722.8,2.68611788]
[1754342214876,0.4604,3724.1,3722.8,0.4795]
[1754342215040,0.4604,3724.1,3722.2,0.4795]
[1754342215041,0.4514,3724.0,3722.2,0.4795]
[1754342215243,0.02,3724.9,3722.3,0.49959228]
[1754342215244,0.4604,3723.9,3722.3,0.49959228]
[1754342215462,0.4604,3723.9,3722.8,2.6861502]
[1754342215463,3.59715682,3723.9,3722.8,2.6861502]
[1754342215663,0.4604,3723.8,3722.3,0.4795]
[1754342215852,0.4604,3723.8,3722.3,3.16594559]
[1754342215853,0.9118,3723.8,3722.3,3.16594559]
[1754342216049,2.68570751,3723.5,3722.4,2.68643143]
[1754342216274,2.68520205,3724.2,3722.2,0.20028123]
[1754342216275,0.4604,3723.4,3722.2,0.20028123]
[1754342216451,2.68506833,3724.3,3722.3,8.07248559]
[1754342216652,1.51674683,3724.2,3722.5,3.55]
[1754342216862,2.68473255,3724.8,3723.2,2.68584737]
[1754342217082,0.02,3724.9,3723.6,0.55]
[1754342217282,0.02,3724.9,3723.4,2.68571735]
[1754342217283,0.02,3724.9,3724.8,3.2347079]
[1754342217488,0.14027778,3726.2,3725.9,0.55]
[1754342217782,0.14027778,3726.2,3724.4,2.6849893]
[1754342217783,0.4514,3727.3,3726.1,0.1336]
[1754342217986,0.4514,3727.3,3726.8,2.81686714]
[1754342218172,2.6822777,3728.2,3726.8,2.81686714]
[1754342218173,0.1336,3728.4,3726.8,3.36686714]
[1754342218377,0.00296924,3729.4,3728.8,2.68182793]
[1754342218561,0.00296924,3729.4,3728.8,3.23182793]
[1754342218884,0.00296924,3729.4,3729.0,3.23168409]
[1754342219125,1e-08,3729.4,3729.3,3.23146837]
[1754342219286,1.0,3730.4,3729.3,5.89849463]
[1754342219582,1.0,3730.4,3730.3,0.1336]
[1754342220080,1.0,3730.4,3730.3,7.16564953]
[1754342220291,1.0,3730.4,3730.3,0.1336]
[1754342220493,1.0,3730.4,3729.0,0.4554]
[1754342220693,1.0,3730.4,3729.1,0.56996415]
[1754342220855,1.0,3730.4,3729.0,0.20411997]
[1754342221051,1.0,3730.4,3729.2,3.0]
[1754342221283,1.0,3730.4,3729.1,0.47537235]
[1754342221284,1.0,3730.4,3730.3,6.23074953]
[1754342221464,0.02,3730.9,3730.8,6.23039026]
[1754342221679,1e-08,3730.9,3730.8,6.23039026]
[1754342221995,4.72676001,3733.1,3733.0,6.2288106]
[1754342222178,0.02,3733.9,3733.8,2.67823664]
[1754342222504,0.02,3733.9,3733.0,0.62288106]
[1754342222792,0.02,3733.9,3733.2,0.140088]
[1754342222978,0.02,3733.9,3729.9,11.5321945]
[1754342222979,0.4604,3733.8,3729.9,11.5321945]
[1754342223164,0.4604,3733.8,3728.3,1.39980753]
[1754342223165,35.07687885,3733.7,3731.9,0.4804]
[1754342223361,35.07687885,3733.7,3731.1,0.2014024]
[1754342223362,11.5321945,3732.6,3731.1,0.2014024]
[1754342223556,3.0,3731.0,3728.6,0.805161]
[1754342223859,11.5321945,3731.8,3726.9,2.68319514]
[1754342223860,3.0,3730.8,3726.9,2.68319514]
[1754342224057,0.55,3730.5,3727.1,0.805549]
[1754342224258,14.5321945,3730.3,3724.6,0.1]
[1754342224491,3.55,3729.6,3726.5,0.20232838]
[1754342224787,0.55,3729.0,3725.3,2.68434756]
[1754342224988,2.68146837,3729.3,3726.5,2.68342676]
[1754342224989,3.0,3728.0,3726.5,2.68342676]
[1754342225215,0.55,3727.7,3725.7,1.85322694]
[1754342225358,0.55,3727.7,3725.4,0.53887371]
[1754342225359,0.55,3727.4,3726.1,2.68376305]
[1754342225702,0.55,3727.4,3725.4,0.53887371]
[1754342225703,0.55,3727.2,3725.4,0.53887371]
[1754342225995,3.0,3726.7,3724.8,2.6847079]
[1754342226192,0.55,3727.2,3724.7,1.85322694]
[1754342226193,2.68341708,3726.6,3724.7,1.85322694]
[1754342226516,5.7638,3726.5,3725.6,2.68412686]
[1754342226654,3.23300514,3727.2,3725.4,1.85322694]
[1754342226655,0.4514,3727.2,3725.4,1.85322694]
[1754342227003,0.4514,3727.2,3724.9,2.31653368]
[1754342227004,0.4514,3727.2,3726.7,2.68332195]
[1754342227295,3.0,3726.9,3725.6,1.85322694]
[1754342227456,3.0,3726.9,3725.5,2.68415557]
[1754342227457,0.55,3726.6,3725.5,1.85322694]
[1754342227658,0.9118,3726.5,3725.3,1.85322694]
[1754342228009,0.55,3726.2,3724.9,2.31653368]
[1754342228309,3.0,3725.4,3724.3,2.68502831]
[1754342228512,0.55,3725.1,3723.6,0.01175992]
[1754342228672,4.854,3725.0,3724.2,2.31653368]
[1754342229007,0.9118,3724.9,3724.8,2.6847079]
[1754342229162,0.9118,3724.9,3724.5,2.31653368]
[1754342229501,0.9118,3724.9,3724.6,2.68478395]
[1754342229704,0.9118,3724.9,3723.3,2.68578948]
[1754342229705,0.4604,3726.6,3726.2,2.68364164]
[1754342229857,0.4604,3726.6,3724.7,0.26847839]
[1754342229858,0.4604,3726.5,3726.4,2.68352322]
[1754342230472,9.12645159,3728.0,3726.4,2.68352322]
[1754342230473,4.9936,3726.8,3726.4,2.68352322]
[1754342230672,4.9936,3726.8,3726.2,0.1336]
[1754342231001,2.68415087,3725.6,3724.6,2.68485168]
[1754342231300,3.0,3725.4,3724.5,0.001]
[1754342231497,0.1336,3724.6,3724.5,0.001]
[1754342231698,2.85201271,3724.6,3724.5,0.001]
[1754342231901,5.81845206,3724.6,3724.5,0.001]
[1754342232103,6.67212627,3724.6,3724.5,0.001]
[1754342232502,11.52512627,3724.6,3724.5,0.001]
[1754342233289,12.07512627,3724.6,3724.5,0.001]
[1754342233504,6.67212627,3724.6,3724.5,0.001]
[1754342233801,10.53185206,3724.6,3724.5,0.001]
[1754342233974,7.847,3724.6,3724.5,0.001]
[1754342234175,10.53185206,3724.6,3724.5,0.001]
[1754342234490,7.847,3724.6,3724.5,0.001]
[1754342234806,11.31655206,3724.6,3724.5,0.001]
[1754342235168,3.7847,3724.6,3724.5,0.001]
[1754342235367,10.52985206,3724.6,3724.5,0.001]
[1754342236070,7.841,3724.6,3724.5,0.001]
[1754342236264,3.0,3724.6,3724.5,0.001]
[1754342236610,7.839,3724.6,3724.5,0.001]
[1754342236773,7.838,3724.6,3724.5,0.001]
[1754342237803,3.0,3724.6,3724.5,0.001]
[1754342238022,4.83,3724.6,3724.5,0.001]
[1754342238182,2.68462918,3725.0,3724.5,0.001]
[1754342238384,3.0,3725.3,3724.5,0.001]
[1754342238706,6.444,3725.4,3724.5,0.001]
[1754342238707,3.0,3725.1,3724.5,0.001]
[1754342239224,2.68457003,3725.0,3724.5,0.001]
[1754342239386,7.11189953,3725.1,3724.5,0.001]
[1754342239588,4.4274,3725.1,3724.5,0.001]
[1754342239788,5.68485206,3724.6,3724.5,0.001]
[1754342239997,10.50885206,3724.6,3724.5,0.001]
[1754342240197,11.82821312,3724.6,3724.5,0.001]
[1754342240527,42.37821312,3724.6,3724.5,0.001]
[1754342240685,37.55421312,3724.6,3724.5,0.001]
[1754342240886,42.37621312,3724.6,3724.5,0.001]
[1754342241087,42.37621312,3724.6,3724.5,1e-08]
[1754342242321,37.819,3724.6,3724.5,1e-08]
[1754342242499,40.49985206,3724.6,3724.5,0.3910497]
[1754342242904,4.813,3724.6,3724.5,0.39096497]
[1754342243140,4.813,3724.6,3724.5,0.24438477]
[1754342243428,3.0,3724.6,3724.5,1e-08]
[1754342243586,4.811,3724.6,3724.5,0.24435625]
[1754342243787,3.0,3725.3,3724.5,0.24435625]
[1754342244134,2.68480164,3724.7,3724.6,0.24435624]
[1754342244318,2.68480164,3724.7,3724.5,1e-08]
[1754342244319,2.68485206,3724.6,3724.5,1e-08]
[1754342244637,35.71841271,3724.6,3724.5,1e-08]
[1754342244788,36.23485206,3724.6,3724.5,1e-08]
[1754342245093,41.03985206,3724.6,3724.5,1e-08]
[1754342245292,43.76851392,3724.6,3724.5,1e-08]
[1754342246061,6.23542886,3723.8,3723.7,1e-08]
[1754342246222,36.23542886,3723.8,3723.7,1e-08]
[1754342246425,41.03642886,3723.8,3723.7,1e-08]
[1754342246625,43.65656603,3723.8,3723.7,1e-08]
[1754342246829,43.10456603,3723.8,3723.7,1e-08]
[1754342247027,43.65456603,3723.8,3723.7,1e-08]
[1754342247848,38.85556603,3723.8,3723.7,1e-08]
[1754342248014,43.65056603,3723.8,3723.7,1e-08]
[1754342249927,38.85556603,3723.8,3723.7,1e-08]
[1754342250129,48.08856603,3723.8,3723.7,1e-08]
[1754342250459,3.23629452,3722.6,3722.5,1e-08]
[1754342250662,43.2192332,3722.6,3722.5,1e-08]
[1754342250863,46.91929452,3722.6,3722.5,1e-08]
[1754342251458,47.46929452,3722.6,3722.5,1e-08]
[1754342251671,42.68629452,3722.6,3722.5,1e-08]
[1754342251808,47.46629452,3722.6,3722.5,1e-08]
[1754342252012,48.91005452,3722.6,3722.5,1e-08]
[1754342252645,44.13005452,3722.6,3722.5,1e-08]
[1754342252831,48.90505452,3722.6,3722.5,1e-08]
[1754342254057,50.51505452,3722.6,3722.5,1e-08]
[1754342254265,50.50705452,3722.6,3722.5,1e-08]
[1754342254435,45.74005452,3722.6,3722.5,1e-08]
[1754342255358,50.50305452,3722.6,3722.5,1e-08]
[1754342255558,50.70494702,3722.6,3722.5,1e-08]
[1754342256176,50.50005452,3722.6,3722.5,1e-08]
[1754342256765,2.68776062,3720.6,3719.4,0.1545149]
[1754342257040,4.757,3720.5,3719.4,0.1545149]
[1754342257236,0.1344,3720.1,3719.5,2.6885334]
[1754342257434,0.1344,3720.1,3719.4,0.43883821]
[1754342257435,4.752,3720.0,3719.4,0.43883821]
[1754342257653,4.752,3720.0,3719.4,0.41872331]
[1754342257875,4.752,3720.0,3719.9,2.6882443]
[1754342258071,6.452,3720.9,3719.7,2.70850004]
[1754342258274,0.1336,3720.6,3720.0,0.1344]
[1754342258455,0.1336,3720.6,3720.5,2.68781077]
[1754342258644,4.8796,3720.6,3720.4,2.68787725]
[1754342258846,4.8796,3720.6,3720.0,0.1344]
[1754342259187,2.68636668,3722.5,3720.1,2.68809978]
[1754342259382,0.1336,3721.6,3721.3,2.68720568]
[1754342259680,0.1336,3721.6,3720.5,0.1336]
[1754342259681,0.1336,3721.6,3721.4,2.68713107]
[1754342259864,0.1336,3722.4,3721.5,0.1336]
[1754342260067,4.749,3722.3,3722.1,2.6866037]
[1754342260267,4.749,3722.3,3722.1,2.68659886]
[1754342260483,0.1336,3722.4,3722.1,2.68659886]
[1754342260484,0.1336,3722.4,3722.3,2.68651102]
[1754342260679,4.8806,3722.4,3722.3,2.68651102]
[1754342260877,4.8806,3722.4,3722.1,0.26865989]
[1754342261077,0.1336,3722.4,3722.3,2.68651102]
[1754342261253,0.1336,3722.4,3721.9,2.68679975]
[1754342261458,4.743,3722.3,3722.1,2.68663824]
[1754342261654,4.743,3722.3,3721.8,2.82047144]
[1754342261655,4.741,3722.2,3721.8,0.1336]
[1754342261862,0.1336,3722.4,3722.1,2.68662234]
[1754342262073,2.68470494,3724.9,3722.2,0.53734221]
[1754342262288,0.1336,3723.4,3722.6,2.68623936]
[1754342262505,0.1336,3723.4,3722.9,0.1336]
[1754342262685,4.746,3723.3,3722.9,0.1336]
[1754342262884,4.746,3723.3,3723.0,2.68594586]
[1754342263067,4.746,3723.3,3722.7,0.1336]
[1754342263474,4.746,3723.3,3722.7,2.81980265]
[1754342263672,4.746,3723.3,3722.8,0.28198027]
[1754342264078,2.68593466,3723.1,3722.3,2.68645731]
[1754342264285,0.1336,3722.9,3722.5,2.68636342]
[1754342264604,4.738,3722.8,3722.5,2.68636342]
[1754342264763,0.1336,3722.9,3722.3,2.8201049]
[1754342264764,0.1336,3722.9,3722.4,0.02009743]
[1754342264968,4.735,3722.7,3722.6,2.68629452]
[1754342265302,3.0,3723.8,3722.9,2.68602241]
[1754342265303,0.1336,3723.1,3722.9,2.68602241]
[1754342265469,0.1336,3723.1,3723.0,2.6860059]
[1754342265795,4.8686,3723.1,3722.9,2.68606323]
[1754342265995,4.735,3723.1,3722.6,0.53727287]
[1754342266197,4.735,3723.1,3722.1,0.001]
[1754342266370,4.73,3723.0,3722.1,0.02109968]
[1754342266562,4.73,3723.0,3722.8,2.68612697]
[1754342267183,4.73,3723.0,3722.1,2.687616]
[1754342267184,4.73,3723.0,3722.1,0.001]
[1754342267484,1.01827155,3723.9,3723.5,2.68558014]
[1754342267662,1.01827155,3723.9,3722.5,2.68631711]
[1754342267663,4.725,3723.8,3723.2,2.68579249]
[1754342267864,4.725,3723.7,3723.3,0.26857925]
[1754342268069,3.0,3723.8,3722.2,3.2365832]
[1754342268269,3.0,3723.8,3722.1,0.001]
[1754342268270,4.724,3723.7,3722.1,0.001]
[1754342268470,4.723,3723.6,3723.5,2.6855956]
[1754342268695,4.721,3723.6,3723.3,2.68577121]
[1754342268902,4.721,3723.6,3722.5,0.55]
[1754342269074,4.721,3723.6,3723.0,2.68595067]
[1754342269487,7.40657578,3723.6,3723.0,2.68595067]
[1754342269705,7.40657578,3723.6,3722.2,2.6865832]
[1754342269706,2.68592666,3723.2,3722.2,2.6865832]
[1754342269904,2.68592666,3723.2,3722.1,0.001]
[1754342269905,4.718,3723.1,3722.5,2.68631303]
[1754342270075,4.718,3723.1,3722.3,0.26875832]
[1754342270272,4.718,3723.1,3722.1,0.001]
[1754342270473,2.68631219,3722.6,3722.1,0.001]
[1754342270679,4.717,3722.5,3722.1,0.001]
[1754342271111,4.716,3722.4,3722.1,0.001]
[1754342271377,2.68648417,3722.4,3722.1,0.001]
[1754342271617,4.716,3722.3,3722.1,0.001]
[1754342272178,2.6865832,3722.2,3722.1,0.001]
[1754342272715,2.68646262,3722.4,3722.1,0.001]
[1754342272929,4.708,3722.2,3722.1,0.001]
[1754342273222,7.3945832,3722.2,3722.1,0.001]
[1754342273569,10.3945832,3722.2,3722.1,0.001]
[1754342273782,2.68633304,3722.6,3721.8,0.001]
[1754342273783,0.41129587,3723.7,3721.8,0.001]
[1754342274005,6.451,3723.6,3722.6,2.6862869]
[1754342274220,1.01827155,3723.9,3722.3,2.68646869]
[1754342274409,4.71,3723.5,3722.8,2.68609535]
[1754342274608,4.71,3723.5,3722.5,2.68633868]
[1754342274810,1.01827155,3723.9,3722.6,0.26863387]
[1754342275016,4.713,3723.8,3722.6,0.02009192]
[1754342275316,7.713,3723.8,3723.2,2.68579074]
[1754342275883,0.1336,3723.7,3723.5,2.68558326]
[1754342276084,0.1336,3723.7,3723.1,0.1336]
[1754342276285,0.1336,3723.7,3723.6,2.6855731]
[1754342276596,0.1336,3723.7,3723.6,2.95413041]
[1754342276791,1.01827155,3723.9,3723.8,2.68542886]
[1754342277193,1.01827155,3723.9,3723.8,2.81902886]
[1754342279182,0.1356,3724.6,3724.5,2.68492415]
[1754342279399,4.696,3724.6,3724.5,2.68492415]
[1754342279615,0.002,3724.6,3724.5,2.68492415]
[1754342279782,4.696,3724.6,3724.5,3.23528327]
[1754342279991,4.696,3724.6,3724.5,0.55035912]
[1754342280182,4.696,3724.6,3724.2,2.68508381]
[1754342280400,4.696,3724.6,3724.1,0.1336]
[1754342280599,0.002,3724.6,3724.5,2.68492415]
[1754342280882,7.50951746,3724.6,3723.6,0.26855731]
[1754342281086,7.50951746,3724.6,3724.4,2.68499624]
[1754342281087,0.002,3724.6,3724.4,2.68499624]
[1754342281283,0.002,3724.6,3724.5,2.68492415]
[1754342281484,1e-08,3724.6,3724.5,5.83858687]
[1754342281726,1e-08,3725.0,3724.9,6.23463582]
[1754342282820,1e-08,3725.0,3724.9,5.81823582]
[1754342283038,1e-08,3725.0,3724.9,3.66853202]
[1754342283454,1e-08,3725.0,3724.9,0.9838962]
[1754342283635,1e-08,3725.0,3724.9,2.81823582]
[1754342283950,1e-08,3725.0,3724.9,2.8382907]
[1754342284126,1e-08,3725.0,3724.9,0.1336]
[1754342284327,1e-08,3725.0,3724.9,2.81823582]
[1754342284737,1e-08,3725.0,3724.9,0.1336]
[1754342284937,1e-08,3725.0,3724.9,2.81823582]
[1754342285249,1e-08,3725.0,3724.9,3.1000594]
[1754342285611,1e-08,3725.0,3724.9,0.1336]
[1754342285612,0.49630001,3725.0,3724.9,0.1336]
[1754342285812,1e-08,3725.0,3724.9,2.81823582]
[1754342286224,1e-08,3725.0,3724.9,2.8382907]
[1754342286413,1e-08,3725.0,3724.9,2.81823582]
[1754342286610,1e-08,3725.0,3724.9,0.1336]
[1754342287250,1e-08,3725.0,3724.9,2.81823582]
[1754342287459,1e-08,3725.0,3724.9,0.1336]
[1754342287916,1e-08,3725.0,3724.9,2.81823582]
[1754342288116,1e-08,3725.0,3724.9,3.38859215]
[1754342288554,1e-08,3725.0,3724.9,3.36853727]
[1754342288717,1e-08,3725.0,3724.9,0.68390145]
[1754342288914,0.49630001,3725.0,3724.9,0.55030145]
[1754342289155,2.68494802,3724.5,3723.5,0.02006242]
[1754342289358,2.68530284,3724.0,3722.4,0.02007658]
[1754342289521,5.6041,3724.4,3722.1,7.36660887]
[1754342289522,6.51561507,3724.4,3722.5,0.02008993]
[1754342289854,0.9241,3724.3,3723.4,2.68568719]
[1754342290038,0.4963,3724.2,3722.5,2.68636668]
[1754342290240,4.677,3724.1,3722.5,0.15498804]
[1754342290432,4.677,3724.1,3723.4,2.68571735]
[1754342290634,4.677,3724.1,3723.5,2.68563541]
[1754342290839,4.677,3724.1,3723.1,2.68588932]
[1754342291035,4.677,3724.1,3723.2,0.26858893]
[1754342291264,0.4963,3724.2,3724.1,2.68521253]
[1754342291464,6.448,3724.8,3723.3,0.5700736]
[1754342291662,1e-08,3725.0,3723.6,0.55]
[1754342291865,1e-08,3725.0,3724.9,2.68463582]
[1754342292064,1e-08,3725.0,3723.8,3.55]
[1754342292363,1e-08,3725.0,3724.9,2.68463582]
[1754342292668,0.49630001,3725.0,3724.9,2.68463582]
[1754342293050,1e-08,3725.0,3724.9,2.68463582]
[1754342293565,1e-08,3725.0,3724.9,2.7046907]
[1754342293725,1e-08,3725.0,3724.9,2.68463582]
[1754342294344,1e-08,3725.0,3724.9,3.22157469]
[1754342295483,1e-08,3725.4,3725.3,6.23434756]
[1754342295982,1e-08,3725.4,3725.3,6.36924756]
[1754342296328,1e-08,3725.4,3725.3,5.68434756]
[1754342296558,1e-08,3725.4,3725.3,6.78967647]
[1754342296741,1e-08,3725.4,3725.3,7.33967647]
[1754342297652,1e-08,3725.4,3725.3,6.78967647]
[1754342299034,1e-08,3725.4,3725.3,6.92327647]
[1754342301247,1e-08,3725.4,3725.3,7.47327647]
[1754342302068,0.92800001,3725.4,3725.3,2.81794756]
[1754342302482,0.92800001,3725.4,3725.3,2.68434756]
[1754342302776,1e-08,3725.4,3725.3,2.68434756]
[1754342302991,1e-08,3725.4,3725.3,2.70439523]
[1754342303273,0.92800001,3725.4,3725.3,2.68434756]
[1754342303632,0.92800001,3725.4,3724.2,0.20637415]
[1754342303833,0.928,3725.3,3724.3,0.32063741]
[1754342304063,0.928,3725.3,3725.0,2.68454627]
[1754342304271,0.436,3725.2,3725.1,2.68447976]
[1754342304458,0.436,3725.2,3725.1,2.68449169]
[1754342304833,0.928,3725.2,3725.1,2.68449169]
[1754342305062,0.492,3725.2,3725.1,2.68449169]
[1754342305975,1e-08,3725.4,3725.3,2.68434756]
[1754342306534,1e-08,3725.4,3725.2,2.68436824]
[1754342306746,0.928,3725.3,3725.2,2.68436824]